[Event "Titled Tuesday Blitz June 13 Late 2023"]
[White "Lashkin, Jegor"]
[Black "Vazquez, Guillermo"]
[WhiteFideId "13907808"]
[BlackFideId "3702308"]
[WhiteElo "2368"]
[BlackElo "2543"]
[Result "1/2-1/2"]
[Round "10"]
[TimeControl "180+2"]
[Date "2023.06.13"]
[WhiteClock "0:00:01"]
[BlackClock "0:00:04"]
[Board "8"]

1. d4 {[%clk 0:03:00]}  d5 {[%clk 0:02:59]} 2. c4 {[%clk 0:03:01]}  e6 {[%clk 0:03:00]} 3. Nf3 {[%clk 0:03:00]}  a6 {[%clk 0:03:00]} 4. Bg5 {[%clk 0:03:00]}  Be7 {[%clk 0:02:59]} 5. Bxe7 {[%clk 0:03:00]}  Qxe7 {[%clk 0:03:00]} 6. Nbd2 {[%clk 0:03:01]}  Nf6 {[%clk 0:03:00]} 7. g3 {[%clk 0:03:01]}  b6 {[%clk 0:02:51]} 8. Bg2 {[%clk 0:02:57]}  Bb7 {[%clk 0:02:51]} 9. Rc1 {[%clk 0:02:57]}  c5 {[%clk 0:02:49]} 10. Qb3 {[%clk 0:02:42]}  Nbd7 {[%clk 0:02:45]} 11. dxc5 {[%clk 0:02:28]}  Qxc5 {[%clk 0:02:46]} 12. O-O {[%clk 0:02:28]}  O-O {[%clk 0:02:42]} 13. cxd5 {[%clk 0:02:26]}  Qxd5 {[%clk 0:02:43]} 14. Nc4 {[%clk 0:02:10]}  b5 {[%clk 0:02:30]} 15. Na5 {[%clk 0:02:09]}  Qxb3 {[%clk 0:02:30]} 16. axb3 {[%clk 0:02:10]}  Bd5 {[%clk 0:02:30]} 17. Nd4 {[%clk 0:02:09]}  g6 {[%clk 0:02:13]} 18. Rc7 {[%clk 0:01:52]}  Ne5 {[%clk 0:02:09]} 19. f3 {[%clk 0:01:45]}  Rac8 {[%clk 0:01:57]} 20. Rfc1 {[%clk 0:01:44]}  Rxc7 {[%clk 0:01:57]} 21. Rxc7 {[%clk 0:01:45]}  Rd8 {[%clk 0:01:58]} 22. e3 {[%clk 0:01:29]}  h5 {[%clk 0:01:52]} 23. Kf2 {[%clk 0:01:19]}  Rd7 {[%clk 0:01:28]} 24. Rxd7 {[%clk 0:01:11]}  Nexd7 {[%clk 0:01:29]} 25. e4 {[%clk 0:01:09]}  Ba8 {[%clk 0:01:29]} 26. b4 {[%clk 0:00:52]}  Kf8 {[%clk 0:01:19]} 27. Bf1 {[%clk 0:00:51]}  g5 {[%clk 0:01:12]} 28. Ndc6 {[%clk 0:00:33]}  g4 {[%clk 0:00:59]} 29. e5 {[%clk 0:00:33]}  Nd5 {[%clk 0:00:44]} 30. fxg4 {[%clk 0:00:34]}  hxg4 {[%clk 0:00:43]} 31. Be2 {[%clk 0:00:34]}  f5 {[%clk 0:00:41]} 32. exf6 {[%clk 0:00:34]}  N7xf6 {[%clk 0:00:41]} 33. Bd3 {[%clk 0:00:15]}  Ke8 {[%clk 0:00:38]} 34. Bg6+ {[%clk 0:00:13]}  Kd7 {[%clk 0:00:38]} 35. Ne5+ {[%clk 0:00:13]}  Kd6 {[%clk 0:00:38]} 36. Nf7+ {[%clk 0:00:08]}  Ke7 {[%clk 0:00:38]} 37. Ne5 {[%clk 0:00:07]}  Nxb4 {[%clk 0:00:37]} 38. Ke3 {[%clk 0:00:06]}  Nfd5+ {[%clk 0:00:24]} 39. Kd4 {[%clk 0:00:06]}  Nf6 {[%clk 0:00:21]} 40. Kc5 {[%clk 0:00:03]}  Nbd5 {[%clk 0:00:21]} 41. Bd3 {[%clk 0:00:02]}  Ne3 {[%clk 0:00:13]} 42. Nec6+ {[%clk 0:00:01]}  Bxc6 {[%clk 0:00:12]} 43. Nxc6+ {[%clk 0:00:02]}  Ke8 {[%clk 0:00:07]} 44. Nb8 {[%clk 0:00:02]}  Nd1 {[%clk 0:00:08]} 45. Nxa6 {[%clk 0:00:02]}  Nxb2 {[%clk 0:00:08]} 46. Bxb5+ {[%clk 0:00:02]}  Kf7 {[%clk 0:00:08]} 47. Kd4 {[%clk 0:00:03]}  Nd5 {[%clk 0:00:07]} 48. Nc5 {[%clk 0:00:02]}  Ke7 {[%clk 0:00:06]} 49. Ne4 {[%clk 0:00:03]}  Nd1 {[%clk 0:00:05]} 50. Be2 {[%clk 0:00:02]}  N1e3 {[%clk 0:00:04]} 51. Nf2 {[%clk 0:00:02]}  Nf5+ {[%clk 0:00:03]} 52. Ke5 {[%clk 0:00:02]}  Nf6 {[%clk 0:00:03]} 53. Nxg4 {[%clk 0:00:02]}  Nd7+ {[%clk 0:00:02]} 54. Kf4 {[%clk 0:00:03]}  Kf7 {[%clk 0:00:02]} 55. Bd3 {[%clk 0:00:03]}  Ne7 {[%clk 0:00:03]} 56. Ne3 {[%clk 0:00:03]}  Kf6 {[%clk 0:00:03]} 57. Ng4+ {[%clk 0:00:02]}  Kf7 {[%clk 0:00:03]} 58. Kf3 {[%clk 0:00:03]}  Nc6 {[%clk 0:00:02]} 59. Ne3 {[%clk 0:00:03]}  Nde5+ {[%clk 0:00:02]} 60. Ke2 {[%clk 0:00:03]}  Nd4+ {[%clk 0:00:02]} 61. Kd2 {[%clk 0:00:04]}  Ndf3+ {[%clk 0:00:03]} 62. Kc3 {[%clk 0:00:04]}  Nxh2 {[%clk 0:00:04]} 63. Be2 {[%clk 0:00:04]}  Nhf3 {[%clk 0:00:04]} 64. Bxf3 {[%clk 0:00:01]}  Nxf3 {[%clk 0:00:04]} 1/2-1/2


[Site "https://www.chess.com"]

[Event "Titled Tuesday Blitz June 13 Late 2023"]
[White "Sviridov, Valery"]
[Black "Hambleton, Aman"]
[WhiteFideId "4120680"]
[BlackFideId "2606577"]
[WhiteElo "2457"]
[BlackElo "2511"]
[Result "1-0"]
[Round "10"]
[TimeControl "180+2"]
[Date "2023.06.13"]
[WhiteClock "0:00:55"]
[BlackClock "0:00:01"]
[Board "9"]

1. d4 {[%clk 0:02:57]}  Nf6 {[%clk 0:02:55]} 2. Nf3 {[%clk 0:02:57]}  e6 {[%clk 0:02:50]} 3. c4 {[%clk 0:02:56]}  b6 {[%clk 0:02:49]} 4. g3 {[%clk 0:02:55]}  Ba6 {[%clk 0:02:48]} 5. Qc2 {[%clk 0:02:55]}  Bb7 {[%clk 0:02:35]} 6. Bg2 {[%clk 0:02:54]}  Bb4+ {[%clk 0:02:32]} 7. Nbd2 {[%clk 0:02:54]}  Bxd2+ {[%clk 0:02:29]} 8. Bxd2 {[%clk 0:02:53]}  Be4 {[%clk 0:02:29]} 9. Qc3 {[%clk 0:02:39]}  O-O {[%clk 0:02:25]} 10. O-O {[%clk 0:02:39]}  d6 {[%clk 0:02:25]} 11. Rfd1 {[%clk 0:02:38]}  Nbd7 {[%clk 0:02:23]} 12. b4 {[%clk 0:02:35]}  a6 {[%clk 0:02:07]} 13. Qb2 {[%clk 0:02:34]}  b5 {[%clk 0:02:02]} 14. Rac1 {[%clk 0:02:22]}  Nb6 {[%clk 0:01:53]} 15. c5 {[%clk 0:02:20]}  Nc4 {[%clk 0:01:48]} 16. Qb3 {[%clk 0:02:13]}  h6 {[%clk 0:01:18]} 17. Be1 {[%clk 0:02:12]}  Qb8 {[%clk 0:01:08]} 18. Bf1 {[%clk 0:02:03]}  Bd5 {[%clk 0:00:51]} 19. Qb1 {[%clk 0:02:03]}  Ne4 {[%clk 0:00:40]} 20. Nh4 {[%clk 0:01:59]}  f5 {[%clk 0:00:39]} 21. Ng2 {[%clk 0:01:59]}  g5 {[%clk 0:00:23]} 22. f3 {[%clk 0:01:57]}  Nf6 {[%clk 0:00:23]} 23. Qd3 {[%clk 0:01:40]}  Nb2 {[%clk 0:00:20]} 24. Qb1 {[%clk 0:01:34]}  Nxd1 {[%clk 0:00:20]} 25. Rxd1 {[%clk 0:01:35]}  Qb7 {[%clk 0:00:20]} 26. Ne3 {[%clk 0:01:35]}  Kg7 {[%clk 0:00:18]} 27. Bf2 {[%clk 0:01:28]}  Rae8 {[%clk 0:00:17]} 28. Qb2 {[%clk 0:01:26]}  f4 {[%clk 0:00:09]} 29. Nxd5 {[%clk 0:01:23]}  Nxd5 {[%clk 0:00:08]} 30. Bh3 {[%clk 0:01:20]}  Re7 {[%clk 0:00:04]} 31. Rc1 {[%clk 0:01:20]}  Qa8 {[%clk 0:00:03]} 32. a3 {[%clk 0:01:20]}  Qe8 {[%clk 0:00:03]} 33. Qb3 {[%clk 0:01:13]}  Qg6 {[%clk 0:00:03]} 34. Kh1 {[%clk 0:01:11]}  Kh7 {[%clk 0:00:02]} 35. Bf1 {[%clk 0:01:09]}  h5 {[%clk 0:00:02]} 36. e4 {[%clk 0:01:01]}  Ne3 {[%clk 0:00:01]} 37. Bxe3 {[%clk 0:01:00]}  fxe3 {[%clk 0:00:02]} 38. Qxe3 {[%clk 0:01:01]}  Ref7 {[%clk 0:00:03]} 39. Be2 {[%clk 0:01:01]}  Kh8 {[%clk 0:00:02]} 40. Kg2 {[%clk 0:01:00]}  e5 {[%clk 0:00:02]} 41. d5 {[%clk 0:01:00]}  g4 {[%clk 0:00:02]} 42. Rf1 {[%clk 0:00:56]}  gxf3+ {[%clk 0:00:03]} 43. Rxf3 {[%clk 0:00:56]}  Rxf3 {[%clk 0:00:03]} 44. Bxf3 {[%clk 0:00:57]}  Kg7 {[%clk 0:00:03]} 45. h4 {[%clk 0:00:57]}  Qh6 {[%clk 0:00:02]} 46. Qe2 {[%clk 0:00:58]}  Qf6 {[%clk 0:00:02]} 47. Bxh5 {[%clk 0:00:57]}  Qe7 {[%clk 0:00:02]} 48. c6 {[%clk 0:00:55]}  Rf6 {[%clk 0:00:02]} 49. Bg4 {[%clk 0:00:55]}  Rg6 {[%clk 0:00:01]} 50. Bf5 {[%clk 0:00:55]}  Rf6 {[%clk 0:00:01]} 51. Qh5 {[%clk 0:00:55]}  Qf8 {[%clk 0:00:01]} 52. Qh7# {[%clk 0:00:55]} 1-0


[Site "https://www.chess.com"]

[Event "Titled Tuesday Blitz June 13 Late 2023"]
[White "Simonian, Hrair"]
[Black "Bortnyk, Olexandr"]
[WhiteFideId "13302337"]
[BlackFideId "14120828"]
[WhiteElo "2447"]
[BlackElo "2733"]
[Result "0-1"]
[Round "10"]
[TimeControl "180+2"]
[Date "2023.06.13"]
[WhiteClock "0:00:01"]
[BlackClock "0:00:30"]
[Board "10"]

1. e4 {[%clk 0:03:00]}  Nf6 {[%clk 0:02:59]} 2. e5 {[%clk 0:03:01]}  Nd5 {[%clk 0:02:59]} 3. c4 {[%clk 0:03:01]}  Nb6 {[%clk 0:02:59]} 4. d4 {[%clk 0:03:02]}  d6 {[%clk 0:03:00]} 5. exd6 {[%clk 0:03:03]}  exd6 {[%clk 0:03:00]} 6. Nc3 {[%clk 0:03:03]}  Be7 {[%clk 0:03:01]} 7. Bd3 {[%clk 0:03:04]}  O-O {[%clk 0:03:02]} 8. Nge2 {[%clk 0:03:04]}  c6 {[%clk 0:03:02]} 9. O-O {[%clk 0:03:02]}  Na6 {[%clk 0:03:01]} 10. b3 {[%clk 0:03:01]}  d5 {[%clk 0:03:01]} 11. c5 {[%clk 0:03:01]}  Nd7 {[%clk 0:03:02]} 12. a3 {[%clk 0:03:00]}  Nc7 {[%clk 0:03:02]} 13. b4 {[%clk 0:02:59]}  Ne6 {[%clk 0:03:02]} 14. Qc2 {[%clk 0:02:51]}  g6 {[%clk 0:03:02]} 15. Bh6 {[%clk 0:02:49]}  Re8 {[%clk 0:03:02]} 16. a4 {[%clk 0:02:32]}  Bf6 {[%clk 0:02:59]} 17. Be3 {[%clk 0:02:31]}  Bg7 {[%clk 0:02:59]} 18. b5 {[%clk 0:02:10]}  Qh4 {[%clk 0:02:55]} 19. f4 {[%clk 0:01:58]}  f5 {[%clk 0:02:48]} 20. Bf2 {[%clk 0:01:56]}  Qh6 {[%clk 0:02:47]} 21. g3 {[%clk 0:01:54]}  Nf6 {[%clk 0:02:47]} 22. Kh1 {[%clk 0:01:00]}  Ng4 {[%clk 0:02:23]} 23. Bg1 {[%clk 0:01:01]}  Bd7 {[%clk 0:02:23]} 24. h4 {[%clk 0:00:57]}  Re7 {[%clk 0:02:19]} 25. Kg2 {[%clk 0:00:57]}  Rae8 {[%clk 0:02:18]} 26. bxc6 {[%clk 0:00:53]}  bxc6 {[%clk 0:02:18]} 27. Rab1 {[%clk 0:00:49]}  Bf6 {[%clk 0:02:17]} 28. Rb7 {[%clk 0:00:41]}  Qg7 {[%clk 0:02:17]} 29. Nd1 {[%clk 0:00:12]}  Nxd4 {[%clk 0:02:12]} 30. Nxd4 {[%clk 0:00:13]}  Bxd4 {[%clk 0:02:12]} 31. Bxd4 {[%clk 0:00:12]}  Qxd4 {[%clk 0:02:13]} 32. Rf3 {[%clk 0:00:10]}  Bc8 {[%clk 0:01:17]} 33. Rxe7 {[%clk 0:00:10]}  Rxe7 {[%clk 0:01:18]} 34. Bf1 {[%clk 0:00:09]}  Re1 {[%clk 0:01:14]} 35. Nf2 {[%clk 0:00:08]}  Ne3+ {[%clk 0:01:13]} 36. Rxe3 {[%clk 0:00:09]}  Rxe3 {[%clk 0:01:04]} 37. Qb1 {[%clk 0:00:09]}  Qxc5 {[%clk 0:00:56]} 38. Nd3 {[%clk 0:00:09]}  Qb6 {[%clk 0:00:53]} 39. Qa1 {[%clk 0:00:08]}  Ba6 {[%clk 0:00:51]} 40. Ne5 {[%clk 0:00:05]}  Bxf1+ {[%clk 0:00:49]} 41. Qxf1 {[%clk 0:00:06]}  Qb2+ {[%clk 0:00:42]} 42. Kh3 {[%clk 0:00:06]}  Re2 {[%clk 0:00:42]} 43. Qg1 {[%clk 0:00:06]}  c5 {[%clk 0:00:37]} 44. Nf3 {[%clk 0:00:06]}  d4 {[%clk 0:00:35]} 45. Qd1 {[%clk 0:00:04]}  Qc2 {[%clk 0:00:34]} 46. Qa1 {[%clk 0:00:04]}  Qe4 {[%clk 0:00:31]} 47. Qf1 {[%clk 0:00:04]}  d3 {[%clk 0:00:30]} 48. Ng5 {[%clk 0:00:04]}  Qg2+ {[%clk 0:00:29]} 49. Qxg2 {[%clk 0:00:04]}  Rxg2 {[%clk 0:00:30]} 50. Kxg2 {[%clk 0:00:01]}  d2 {[%clk 0:00:30]} 0-1


[Site "https://www.chess.com"]

[Event "Titled Tuesday Blitz June 13 Late 2023"]
[White "Bazeev, German"]
[Black "Swiercz, Dariusz"]
[WhiteFideId "24119350"]
[BlackFideId "1126881"]
[WhiteElo "2466"]
[BlackElo "2620"]
[Result "1/2-1/2"]
[Round "10"]
[TimeControl "180+2"]
[Date "2023.06.13"]
[WhiteClock "0:00:23"]
[BlackClock "0:00:11"]
[Board "12"]

1. c4 {[%clk 0:02:59]}  e5 {[%clk 0:02:58]} 2. Nc3 {[%clk 0:02:57]}  Nf6 {[%clk 0:02:59]} 3. Nf3 {[%clk 0:02:56]}  Nc6 {[%clk 0:02:58]} 4. e4 {[%clk 0:02:57]}  Bb4 {[%clk 0:02:57]} 5. d3 {[%clk 0:02:58]}  d6 {[%clk 0:02:57]} 6. h3 {[%clk 0:02:57]}  O-O {[%clk 0:02:56]} 7. Be2 {[%clk 0:02:58]}  a6 {[%clk 0:02:45]} 8. O-O {[%clk 0:02:58]}  h6 {[%clk 0:02:46]} 9. Be3 {[%clk 0:02:58]}  Bc5 {[%clk 0:02:44]} 10. Qd2 {[%clk 0:02:58]}  Re8 {[%clk 0:02:36]} 11. Bd1 {[%clk 0:02:57]}  Bd7 {[%clk 0:02:27]} 12. Ne2 {[%clk 0:02:53]}  b5 {[%clk 0:02:26]} 13. Bb3 {[%clk 0:02:50]}  Be6 {[%clk 0:02:20]} 14. Rac1 {[%clk 0:02:48]}  Bxe3 {[%clk 0:02:01]} 15. fxe3 {[%clk 0:02:38]}  Ne7 {[%clk 0:02:00]} 16. Ng3 {[%clk 0:02:37]}  c5 {[%clk 0:01:54]} 17. Nh4 {[%clk 0:02:31]}  Ng6 {[%clk 0:01:42]} 18. Nhf5 {[%clk 0:02:25]}  Nh7 {[%clk 0:01:25]} 19. Kh2 {[%clk 0:02:19]}  b4 {[%clk 0:01:18]} 20. Ba4 {[%clk 0:02:17]}  Rf8 {[%clk 0:01:18]} 21. Rf2 {[%clk 0:02:14]}  Nh4 {[%clk 0:00:55]} 22. Rcf1 {[%clk 0:01:55]}  Rc8 {[%clk 0:00:51]} 23. Bd1 {[%clk 0:01:50]}  Bxf5 {[%clk 0:00:31]} 24. exf5 {[%clk 0:01:39]}  g6 {[%clk 0:00:03]} 25. f6 {[%clk 0:01:26]}  Ng5 {[%clk 0:00:02]} 26. Ne4 {[%clk 0:01:23]}  Nxe4 {[%clk 0:00:02]} 27. dxe4 {[%clk 0:01:24]}  g5 {[%clk 0:00:02]} 28. Bh5 {[%clk 0:01:20]}  Kh7 {[%clk 0:00:01]} 29. Qe2 {[%clk 0:00:59]}  Ng6 {[%clk 0:00:02]} 30. Bg4 {[%clk 0:01:00]}  Rb8 {[%clk 0:00:02]} 31. g3 {[%clk 0:00:57]}  a5 {[%clk 0:00:02]} 32. Qf3 {[%clk 0:00:55]}  Rg8 {[%clk 0:00:02]} 33. Rd1 {[%clk 0:00:53]}  Rb6 {[%clk 0:00:02]} 34. Rfd2 {[%clk 0:00:53]}  Qf8 {[%clk 0:00:02]} 35. Bf5 {[%clk 0:00:53]}  Kh8 {[%clk 0:00:02]} 36. Qh5 {[%clk 0:00:53]}  Kh7 {[%clk 0:00:03]} 37. h4 {[%clk 0:00:51]}  gxh4 {[%clk 0:00:03]} 38. gxh4 {[%clk 0:00:52]}  Qd8 {[%clk 0:00:03]} 39. Rf2 {[%clk 0:00:43]}  Qxf6 {[%clk 0:00:03]} 40. Bxg6+ {[%clk 0:00:42]}  fxg6 {[%clk 0:00:03]} 41. Qxh6+ {[%clk 0:00:37]}  Kxh6 {[%clk 0:00:04]} 42. Rxf6 {[%clk 0:00:37]}  Kg7 {[%clk 0:00:05]} 43. Rfxd6 {[%clk 0:00:35]}  Rxd6 {[%clk 0:00:05]} 44. Rxd6 {[%clk 0:00:35]}  Rf8 {[%clk 0:00:05]} 45. Kg2 {[%clk 0:00:36]}  Rh8 {[%clk 0:00:05]} 46. Rd5 {[%clk 0:00:30]}  Rxh4 {[%clk 0:00:05]} 47. Rxe5 {[%clk 0:00:31]}  a4 {[%clk 0:00:05]} 48. Rxc5 {[%clk 0:00:28]}  Rxe4 {[%clk 0:00:05]} 49. Kf3 {[%clk 0:00:29]}  Rh4 {[%clk 0:00:06]} 50. Rb5 {[%clk 0:00:29]}  a3 {[%clk 0:00:03]} 51. b3 {[%clk 0:00:28]}  Rh2 {[%clk 0:00:03]} 52. Rxb4 {[%clk 0:00:29]}  Rxa2 {[%clk 0:00:04]} 53. Ra4 {[%clk 0:00:26]}  Ra1 {[%clk 0:00:04]} 54. b4 {[%clk 0:00:22]}  g5 {[%clk 0:00:05]} 55. Kg2 {[%clk 0:00:22]}  a2 {[%clk 0:00:05]} 56. b5 {[%clk 0:00:22]}  Kf6 {[%clk 0:00:05]} 57. c5 {[%clk 0:00:20]}  Rb1 {[%clk 0:00:03]} 58. Rxa2 {[%clk 0:00:20]}  Rxb5 {[%clk 0:00:03]} 59. Rc2 {[%clk 0:00:21]}  Ke7 {[%clk 0:00:04]} 60. Kg3 {[%clk 0:00:21]}  Rb4 {[%clk 0:00:04]} 61. Kf3 {[%clk 0:00:20]}  Kd7 {[%clk 0:00:04]} 62. e4 {[%clk 0:00:21]}  Kc6 {[%clk 0:00:04]} 63. Rc1 {[%clk 0:00:18]}  Ra4 {[%clk 0:00:04]} 64. Rc2 {[%clk 0:00:17]}  Rb4 {[%clk 0:00:04]} 65. Rg2 {[%clk 0:00:18]}  Kxc5 {[%clk 0:00:03]} 66. Rxg5+ {[%clk 0:00:18]}  Kd6 {[%clk 0:00:04]} 67. Ra5 {[%clk 0:00:16]}  Ke6 {[%clk 0:00:04]} 68. Kf4 {[%clk 0:00:16]}  Rb6 {[%clk 0:00:04]} 69. Rh5 {[%clk 0:00:15]}  Rb1 {[%clk 0:00:04]} 70. Rh6+ {[%clk 0:00:16]}  Ke7 {[%clk 0:00:04]} 71. Ra6 {[%clk 0:00:17]}  Rb5 {[%clk 0:00:05]} 72. Ra4 {[%clk 0:00:16]}  Rc5 {[%clk 0:00:05]} 73. Rd4 {[%clk 0:00:16]}  Rb5 {[%clk 0:00:05]} 74. Rd3 {[%clk 0:00:17]}  Ra5 {[%clk 0:00:05]} 75. Rh3 {[%clk 0:00:17]}  Rb5 {[%clk 0:00:06]} 76. Rh7+ {[%clk 0:00:18]}  Ke6 {[%clk 0:00:06]} 77. Rh6+ {[%clk 0:00:19]}  Ke7 {[%clk 0:00:06]} 78. Rg6 {[%clk 0:00:18]}  Ra5 {[%clk 0:00:07]} 79. Rg3 {[%clk 0:00:18]}  Rb5 {[%clk 0:00:07]} 80. Rg6 {[%clk 0:00:17]}  Ra5 {[%clk 0:00:07]} 81. Rg2 {[%clk 0:00:17]}  Rb5 {[%clk 0:00:08]} 82. Rg1 {[%clk 0:00:18]}  Ra5 {[%clk 0:00:08]} 83. Rf1 {[%clk 0:00:19]}  Rb5 {[%clk 0:00:09]} 84. Rf3 {[%clk 0:00:20]}  Ra5 {[%clk 0:00:09]} 85. Rg3 {[%clk 0:00:21]}  Rb5 {[%clk 0:00:09]} 86. Rg2 {[%clk 0:00:21]}  Ra5 {[%clk 0:00:10]} 87. Rg5 {[%clk 0:00:22]}  Rxg5 {[%clk 0:00:10]} 88. Kxg5 {[%clk 0:00:22]}  Ke6 {[%clk 0:00:10]} 89. e5 {[%clk 0:00:23]}  Kxe5 {[%clk 0:00:11]} 1/2-1/2


[Site "https://www.chess.com"]

[Event "Titled Tuesday Blitz June 13 Late 2023"]
[White "Kovalev, Vladislav"]
[Black "Bryakin, Mikhail"]
[WhiteFideId "13504398"]
[BlackFideId "4165314"]
[WhiteElo "2555"]
[BlackElo "2464"]
[Result "1-0"]
[Round "10"]
[TimeControl "180+2"]
[Date "2023.06.13"]
[WhiteClock "0:00:49"]
[BlackClock "0:00:45"]
[Board "13"]

1. e4 {[%clk 0:02:58]}  d5 {[%clk 0:02:56]} 2. exd5 {[%clk 0:02:58]}  Qxd5 {[%clk 0:02:57]} 3. Nc3 {[%clk 0:02:59]}  Qe5+ {[%clk 0:02:58]} 4. Be2 {[%clk 0:02:57]}  Bg4 {[%clk 0:02:56]} 5. d4 {[%clk 0:02:57]}  Bxe2 {[%clk 0:02:56]} 6. Ngxe2 {[%clk 0:02:58]}  Qa5 {[%clk 0:02:56]} 7. b4 {[%clk 0:02:52]}  Qh5 {[%clk 0:02:55]} 8. Qd3 {[%clk 0:02:40]}  Nd7 {[%clk 0:02:35]} 9. Bf4 {[%clk 0:02:31]}  c6 {[%clk 0:02:14]} 10. d5 {[%clk 0:02:18]}  Ngf6 {[%clk 0:02:11]} 11. dxc6 {[%clk 0:02:15]}  bxc6 {[%clk 0:02:12]} 12. Qc4 {[%clk 0:01:46]}  e5 {[%clk 0:02:07]} 13. Qxc6 {[%clk 0:01:32]}  Rb8 {[%clk 0:02:05]} 14. O-O {[%clk 0:01:15]}  Qf5 {[%clk 0:01:30]} 15. Rfe1 {[%clk 0:00:57]}  Qe6 {[%clk 0:01:18]} 16. Nd4 {[%clk 0:00:56]}  Qxc6 {[%clk 0:01:09]} 17. Nxc6 {[%clk 0:00:57]}  Rb6 {[%clk 0:01:08]} 18. Nxe5 {[%clk 0:00:56]}  Nxe5 {[%clk 0:01:04]} 19. Bxe5 {[%clk 0:00:55]}  Kd7 {[%clk 0:01:00]} 20. Rad1+ {[%clk 0:00:54]}  Bd6 {[%clk 0:00:54]} 21. Na4 {[%clk 0:00:49]}  Rc6 {[%clk 0:00:45]} 22. b5 {[%clk 0:00:49]} 1-0


[Site "https://www.chess.com"]

[Event "Titled Tuesday Blitz June 13 Late 2023"]
[White "Tanenbaum, Zachary"]
[Black "Hansen, Eric"]
[WhiteFideId "2060850"]
[BlackFideId "2606771"]
[WhiteElo "2207"]
[BlackElo "2561"]
[Result "1-0"]
[Round "10"]
[TimeControl "180+2"]
[Date "2023.06.13"]
[WhiteClock "0:00:44"]
[BlackClock "0:00:00"]
[Board "16"]

1. e4 {[%clk 0:03:00]}  c5 {[%clk 0:02:53]} 2. Nf3 {[%clk 0:03:01]}  e6 {[%clk 0:02:53]} 3. d4 {[%clk 0:03:01]}  cxd4 {[%clk 0:02:53]} 4. Nxd4 {[%clk 0:03:02]}  a6 {[%clk 0:02:53]} 5. Bd3 {[%clk 0:03:02]}  Qb6 {[%clk 0:02:53]} 6. Nb3 {[%clk 0:03:01]}  Qc7 {[%clk 0:02:54]} 7. O-O {[%clk 0:03:00]}  d6 {[%clk 0:02:54]} 8. Nc3 {[%clk 0:03:00]}  Nf6 {[%clk 0:02:54]} 9. Be3 {[%clk 0:03:00]}  b5 {[%clk 0:02:54]} 10. f4 {[%clk 0:03:00]}  Bb7 {[%clk 0:02:54]} 11. a3 {[%clk 0:03:00]}  Nbd7 {[%clk 0:02:54]} 12. Qf3 {[%clk 0:02:59]}  Be7 {[%clk 0:02:52]} 13. Rae1 {[%clk 0:02:58]}  O-O {[%clk 0:02:52]} 14. g4 {[%clk 0:02:58]}  d5 {[%clk 0:02:49]} 15. e5 {[%clk 0:02:55]}  Ne4 {[%clk 0:02:05]} 16. Nxe4 {[%clk 0:02:54]}  dxe4 {[%clk 0:02:06]} 17. Bxe4 {[%clk 0:02:54]}  Bxe4 {[%clk 0:02:06]} 18. Qxe4 {[%clk 0:02:55]}  Nb6 {[%clk 0:02:04]} 19. f5 {[%clk 0:02:47]}  Bh4 {[%clk 0:01:52]} 20. Re2 {[%clk 0:02:41]}  Nd5 {[%clk 0:01:52]} 21. Bc5 {[%clk 0:02:35]}  Rfc8 {[%clk 0:01:48]} 22. fxe6 {[%clk 0:02:28]}  fxe6 {[%clk 0:01:47]} 23. g5 {[%clk 0:02:27]}  Bxg5 {[%clk 0:01:23]} 24. Qg4 {[%clk 0:02:27]}  Qd8 {[%clk 0:00:59]} 25. Qxe6+ {[%clk 0:02:19]}  Kh8 {[%clk 0:00:59]} 26. Rf8+ {[%clk 0:02:20]}  Qxf8 {[%clk 0:01:00]} 27. Bxf8 {[%clk 0:02:21]}  Nf4 {[%clk 0:01:00]} 28. Bxg7+ {[%clk 0:02:11]}  Kxg7 {[%clk 0:00:59]} 29. Qd7+ {[%clk 0:02:12]}  Kh6 {[%clk 0:00:54]} 30. Rd2 {[%clk 0:02:06]}  Rc4 {[%clk 0:00:45]} 31. Nd4 {[%clk 0:01:53]}  Kg6 {[%clk 0:00:20]} 32. Qf5+ {[%clk 0:01:45]}  Kh6 {[%clk 0:00:20]} 33. h4 {[%clk 0:01:45]}  Nh3+ {[%clk 0:00:14]} 34. Qxh3 {[%clk 0:01:08]}  Bxd2 {[%clk 0:00:14]} 35. Qe6+ {[%clk 0:01:08]}  Kh5 {[%clk 0:00:10]} 36. Qf5+ {[%clk 0:01:05]}  Kh6 {[%clk 0:00:08]} 37. Qf6+ {[%clk 0:01:04]}  Kh5 {[%clk 0:00:09]} 38. Qf3+ {[%clk 0:01:03]}  Kg6 {[%clk 0:00:00]} 39. Qg2+ {[%clk 0:00:44]} 1-0


[Site "https://www.chess.com"]

[Event "Titled Tuesday Blitz June 13 Late 2023"]
[White "Manea, Alexandru"]
[Black "Chigaev, Maksim"]
[WhiteFideId "1207660"]
[BlackFideId "4108116"]
[WhiteElo "2226"]
[BlackElo "2561"]
[Result "0-1"]
[Round "10"]
[TimeControl "180+2"]
[Date "2023.06.13"]
[WhiteClock "0:01:29"]
[BlackClock "0:00:42"]
[Board "17"]

1. e4 {[%clk 0:02:50]}  e6 {[%clk 0:02:59]} 2. d4 {[%clk 0:02:48]}  d5 {[%clk 0:03:00]} 3. exd5 {[%clk 0:02:49]}  exd5 {[%clk 0:03:00]} 4. Nf3 {[%clk 0:02:50]}  Bd6 {[%clk 0:03:00]} 5. Bd3 {[%clk 0:02:49]}  Ne7 {[%clk 0:02:52]} 6. O-O {[%clk 0:02:49]}  O-O {[%clk 0:02:53]} 7. Re1 {[%clk 0:02:47]}  Nbc6 {[%clk 0:02:53]} 8. c3 {[%clk 0:02:43]}  Bf5 {[%clk 0:02:53]} 9. Bxf5 {[%clk 0:02:42]}  Nxf5 {[%clk 0:02:54]} 10. Nbd2 {[%clk 0:02:42]}  Qd7 {[%clk 0:02:53]} 11. Nf1 {[%clk 0:02:42]}  f6 {[%clk 0:02:50]} 12. Ne3 {[%clk 0:02:42]}  Nce7 {[%clk 0:02:49]} 13. Bd2 {[%clk 0:02:40]}  c6 {[%clk 0:02:47]} 14. Re2 {[%clk 0:02:37]}  Rae8 {[%clk 0:02:46]} 15. Qc2 {[%clk 0:02:38]}  Nxe3 {[%clk 0:02:41]} 16. Bxe3 {[%clk 0:02:39]}  Nf5 {[%clk 0:02:41]} 17. Rae1 {[%clk 0:02:39]}  g5 {[%clk 0:02:29]} 18. h3 {[%clk 0:02:33]}  h5 {[%clk 0:02:29]} 19. Bc1 {[%clk 0:02:29]}  Rxe2 {[%clk 0:02:23]} 20. Rxe2 {[%clk 0:02:28]}  Qh7 {[%clk 0:02:15]} 21. Re6 {[%clk 0:02:20]}  g4 {[%clk 0:02:08]} 22. Nh4 {[%clk 0:02:13]}  Nxh4 {[%clk 0:02:04]} 23. Qxh7+ {[%clk 0:02:12]}  Kxh7 {[%clk 0:02:05]} 24. Rxd6 {[%clk 0:02:12]}  gxh3 {[%clk 0:01:54]} 25. Rd7+ {[%clk 0:01:58]}  Kg6 {[%clk 0:01:54]} 26. Re7 {[%clk 0:01:56]}  hxg2 {[%clk 0:01:48]} 27. Bf4 {[%clk 0:01:54]}  Rf7 {[%clk 0:01:41]} 28. Re8 {[%clk 0:01:54]}  Kf5 {[%clk 0:01:25]} 29. Bg3 {[%clk 0:01:53]}  Ng6 {[%clk 0:01:25]} 30. Kxg2 {[%clk 0:01:52]}  Re7 {[%clk 0:01:21]} 31. Rb8 {[%clk 0:01:44]}  Nf4+ {[%clk 0:01:13]} 32. Kf3 {[%clk 0:01:42]}  Nd3 {[%clk 0:01:12]} 33. Bd6 {[%clk 0:01:40]}  Ne1+ {[%clk 0:01:07]} 34. Kg3 {[%clk 0:01:39]}  Rg7+ {[%clk 0:01:07]} 35. Kh3 {[%clk 0:01:37]}  Nd3 {[%clk 0:01:07]} 36. Ba3 {[%clk 0:01:37]}  Nxf2+ {[%clk 0:00:52]} 37. Kh4 {[%clk 0:01:35]}  Nd3 {[%clk 0:00:43]} 38. Ra8 {[%clk 0:01:29]}  Nf4 {[%clk 0:00:42]} 0-1


[Site "https://www.chess.com"]